[Event "Chile Championship Absolute 2022"]
[Site "Las Condes"]
[Date "2022.02.24"]
[Round "8.6"]
[White "Diaz Vasquez, Martin"]
[Black "Diaz Villagran, Robert"]
[Result "1-0"]
[ECO "E62"]
[WhiteElo "2253"]
[BlackElo "2318"]
[Annotator "RC"]
[PlyCount "101"]
[EventDate "2022.02.18"]
[EventType "tourn"]
[EventCountry "CHI"]
[SourceTitle "playchess.com"]
[Source "ChessBase"]
[SourceQuality "1"]
[TimeControl "5400+30"]

1. d4 {[%emt 0:00:27]} Nf6 {[%emt 0:01:49]} 2. c4 {[%emt 0:00:15]} g6 {[%emt 0:04:21]} 3. Nf3 {[%emt 0:00:28]} Bg7 {[%emt 0:00:13]} 4. g3 {[%emt 0:00:10]} O-O {[%emt 0:00:27]} 5. Bg2 {[%emt 0:00:06]} d6 {[%emt 0:00:11]} 6. O-O {[%emt 0:00:09]} Nc6 {[%emt 0:01:43]} 7. d5 {[%emt 0:01:47]} Nb8 {[%emt 0:05:04]} 8. Nc3 {[%emt 0:00:44]} e5 {[%emt 0:00:14]} 9. dxe6 {[%emt 0:00:44]} fxe6 {[%emt 0:00:13]} 10. Qc2 {[%emt 0:02:42]} Nc6 {[%emt 0:07:03]} 11. Rd1 {[%emt 0:02:28]} Qe7 {[%emt 0:00:12]} 12. h3 {[%emt 0:09:04]} Kh8 {[%emt 0:11:13]} 13. e4 {[%emt 0:04:19]} Nd7 {[%emt 0:06:18]} 14. Be3 {[%emt 0:11:17]} Nc5 {[%emt 0:05:33]} 15. Rab1 {[%emt 0:05:45]} a5 {[%emt 0:06:14]} 16. Kh2 {[%emt 0:09:02]} Bd7 {[%emt 0:09:46]} 17. b3 {[%emt 0:07:09]} Be8 {[%emt 0:02:23]} 18. Rbc1 {[%emt 0:01:03]} a4 {[%emt 0:11:03]} 19. e5 {[%emt 0:12:20]} Nxe5 {[%emt 0:09:24]} 20. Nxe5 {[%emt 0:00:31]} axb3 {[%emt 0:00:11]} 21. axb3 {[%emt 0:03:55]} Bxe5 {[%emt 0:00:03]} 22. b4 {[%emt 0:02:14]} Na4 {[%emt 0:06:01]} 23. Nb5 {[%emt 0:02:31]} Bxb5 {[%emt 0:04:38]} 24. cxb5 {[%emt 0:00:03]} Nc3 {[%emt 0:00:02]} 25. Rd3 {[%emt 0:01:38]} Nxb5 {[%emt 0:02:01]} 26. Bxb7 {[%emt 0:00:25]} Rab8 {[%emt 0:00:09]} 27. Bc6 {[%emt 0:00:43]} Rf7 {[%emt 0:00:01]} 28. Qa4 {[%emt 0:00:51]} Nd4 {[%emt 0:04:11]} 29. Rxd4 {[%emt 0:03:10]} Bxd4 {[%emt 0:00:35]} 30. Bxd4+ {[%emt 0:00:02]} Kg8 {[%emt 0:00:10]} 31. b5 {[%emt 0:01:03]} Qg5 {[%emt 0:00:06]} 32. Re1 {[%emt 0:01:29]} Qf5 {[%emt 0:00:26]} 33. Qc4 {[%emt 0:01:24]} e5 {[%emt 0:01:06]} 34. Ba7 {[%emt 0:01:36]} Kg7 {[%emt 0:00:11]} 35. Bd5 {[%emt 0:01:30]} Re7 {[%emt 0:00:00]} 36. f4 {[%emt 0:04:18]} Rf8 {[%emt 0:00:14]} 37. Bg1 {[%emt 0:02:07]} Rd8 {[%emt 0:00:48]} 38. Rf1 {[%emt 0:02:52]} Rf8 {[%emt 0:01:09]} 39. Kg2 {[%emt 0:07:39]} h5 {[%emt 0:00:50]} 40. Be4 {[%emt 0:00:00]} Qf6 {[%emt 0:00:01]} 41. f5 {[%emt 0:00:00]} gxf5 {[%emt 0:00:17]} 42. Rxf5 {[%emt 0:00:00]} Qh6 {[%emt 0:00:00]} 43. Rxf8 {[%emt 0:00:00]} Kxf8 {[%emt 0:00:01]} 44. Qe2 {[%emt 0:00:00]} h4 {[%emt 0:00:45]} 45. Be3 {[%emt 0:00:00]} Qg7 {[%emt 0:00:01]} 46. g4 {[%emt 0:00:46]} Rd7 {[%emt 0:00:42]} 47. Bd5 {[%emt 0:00:38]} Qg6 {[%emt 0:00:12]} 48. Qf2+ {[%emt 0:00:25]} Kg7 {[%emt 0:00:07]} 49. Qxh4 {[%emt 0:00:22]} Qc2+ {[%emt 0:00:00]} 50. Kg3 {[%emt 0:00:46]} Qg6 {[%emt 0:00:01]} 51. Qg5 {[%emt 0:00:21]} 1-0

[Event "Chile Championship Absolute 2022"]
[Site "Las Condes"]
[Date "2022.02.26"]
[Round "10.6"]
[White "Diaz Villagran, Robert"]
[Black "Vasquez Toledo, Cristian"]
[Result "1/2-1/2"]
[ECO "C49"]
[WhiteElo "2318"]
[BlackElo "2154"]
[Annotator "ChessBase"]
[PlyCount "41"]
[EventDate "2022.02.18"]
[EventType "tourn"]
[EventCountry "CHI"]
[SourceTitle "playchess.com"]
[Source "ChessBase"]
[SourceQuality "1"]
[TimeControl "5400+30"]

1. e4 {[%emt 0:00:03]} e5 {[%emt 0:01:19]} 2. Nf3 {[%emt 0:00:15]} Nc6 {[%emt 0:00:04]} 3. Nc3 {[%emt 0:00:28]} Nf6 {[%emt 0:00:13]} 4. Bb5 {[%emt 0:00:24]} Bb4 {[%emt 0:05:54]} 5. O-O {[%emt 0:00:58]} O-O {[%emt 0:00:13]} 6. d3 {[%emt 0:00:13]} d6 {[%emt 0:00:59]} 7. Bg5 {[%emt 0:00:15]} Bxc3 {[%emt 0:00:55]} 8. bxc3 {[%emt 0:00:14]} h6 {[%emt 0:00:07]} 9. Bh4 {[%emt 0:06:19]} Bg4 {[%emt 0:06:52]} 10. h3 {[%emt 0:03:58]} Bd7 {[%emt 0:00:37]} 11. Bxc6 {[%emt 0:14:51]} Bxc6 {[%emt 0:06:19]} 12. Qd2 {[%emt 0:08:48]} Kh7 {[%emt 0:04:23]} 13. c4 {[%emt 0:07:02]} Rg8 {[%emt 0:00:29]} 14. g4 {[%emt 0:00:22]} g5 {[%emt 0:03:56]} 15. Bg3 {[%emt 0:03:48]} Rg6 {[%emt 0:01:27]} 16. Nh2 {[%emt 0:06:33]} Nd7 {[%emt 0:04:08]} 17. Rfe1 {[%emt 0:07:09]} Nc5 {[%emt 0:00:54]} 18. Nf1 {[%emt 0:37:50]} Ne6 19. Ne3 {[%emt 0:00:30]} Nd4 {[%emt 1:01:11]} 20. Nf1 {[%emt 0:00:30]} Ne6 {[%emt 0:00:30]} 21. c3 {[%emt 0:00:00]} 1/2-1/2

[Event "Chile Championship Absolute 2022"]
[Site "Las Condes"]
[Date "2022.02.27"]
[Round "11.1"]
[White "Vasquez Toledo, Cristian"]
[Black "Palma Neira, Eliseo Maximiliano"]
[Result "1-0"]
[ECO "B33"]
[WhiteElo "2154"]
[BlackElo "2029"]
[Annotator "ChessBase"]
[PlyCount "109"]
[EventDate "2022.02.18"]
[EventType "tourn"]
[EventCountry "CHI"]
[SourceTitle "playchess.com"]
[Source "ChessBase"]
[SourceQuality "1"]
[TimeControl "5400+30"]

1. e4 {[%emt 0:03:02]} c5 {[%emt 0:26:13]} 2. Nf3 {[%emt 0:00:07]} Nc6 {[%emt 0:00:02]} 3. d4 {[%emt 0:00:05]} cxd4 {[%emt 0:00:04]} 4. Nxd4 {[%emt 0:00:05]} Nf6 {[%emt 0:00:03]} 5. Nc3 {[%emt 0:00:07]} e5 {[%emt 0:00:05]} 6. Ndb5 {[%emt 0:00:04]} d6 {[%emt 0:00:06]} 7. Bg5 {[%emt 0:00:07]} a6 {[%emt 0:00:06]} 8. Na3 {[%emt 0:00:04]} b5 {[%emt 0:00:03]} 9. Nd5 {[%emt 0:00:08]} Be7 {[%emt 0:00:04]} 10. Bxf6 {[%emt 0:00:05]} Bxf6 {[%emt 0:00:05]} 11. c3 {[%emt 0:00:07]} O-O {[%emt 0:00:40]} 12. Nc2 {[%emt 0:00:04]} Bg5 {[%emt 0:00:02]} 13. a4 {[%emt 0:00:18]} bxa4 {[%emt 0:01:16]} 14. Rxa4 {[%emt 0:00:10]} a5 {[%emt 0:01:23]} 15. Bc4 {[%emt 0:00:15]} Rb8 {[%emt 0:03:22]} 16. b3 {[%emt 0:04:31]} Be6 {[%emt 0:01:57]} 17. Nce3 {[%emt 0:00:36]} Bxe3 {[%emt 0:00:04]} 18. Nxe3 {[%emt 0:00:05]} Qd7 {[%emt 0:06:54]} 19. O-O {[%emt 0:00:48]} Rfd8 {[%emt 0:01:32]} 20. Qc2 {[%emt 0:03:22]} Bxc4 {[%emt 0:03:36]} 21. Rxc4 {[%emt 0:00:34]} Qb7 {[%emt 0:01:03]} 22. Rb1 {[%emt 0:00:24]} Ne7 {[%emt 0:00:28]} 23. Ra4 {[%emt 0:00:47]} d5 {[%emt 0:06:42]} 24. exd5 {[%emt 0:18:16]} Nxd5 {[%emt 0:02:32]} 25. Rxa5 {[%emt 0:00:11]} Nxe3 {[%emt 0:02:01]} 26. fxe3 {[%emt 0:00:04]} e4 {[%emt 0:00:17]} 27. Ra4 {[%emt 0:00:49]} Rd3 {[%emt 0:01:08]} 28. Rd4 {[%emt 0:05:19]} Rxe3 {[%emt 0:04:00]} 29. Qd2 {[%emt 0:00:27]} Rd3 {[%emt 0:00:41]} 30. Rxd3 {[%emt 0:00:02]} exd3 {[%emt 0:00:09]} 31. Qxd3 {[%emt 0:00:04]} Qa7+ {[%emt 0:00:31]} 32. Kh1 {[%emt 0:01:01]} Qe7 {[%emt 0:04:44]} 33. h3 {[%emt 0:03:19]} h5 {[%emt 0:05:14]} 34. b4 {[%emt 0:01:22]} Qh4 {[%emt 0:01:20]} 35. Rf1 {[%emt 0:06:08]} Rb6 {[%emt 0:05:08]} 36. Qd5 {[%emt 0:04:21]} Re6 {[%emt 0:04:51]} 37. b5 {[%emt 0:01:03]} Rf6 {[%emt 0:04:26]} 38. Rxf6 {[%emt 0:02:10]} Qxf6 {[%emt 0:01:18]} 39. Qa8+ {[%emt 0:00:05]} Kh7 {[%emt 0:00:10]} 40. Qe4+ {[%emt 0:00:02]} g6 {[%emt 0:00:59]} 41. c4 {[%emt 0:00:05]} Qf1+ {[%emt 0:00:12]} 42. Kh2 {[%emt 0:00:02]} f5 {[%emt 0:00:10]} 43. Qe5 {[%emt 0:02:59]} Qf2 {[%emt 0:04:21]} 44. c5 {[%emt 0:08:45]} f4 {[%emt 0:00:26]} 45. c6 {[%emt 0:01:02]} h4 {[%emt 0:02:32]} 46. c7 {[%emt 0:00:29]} f3 {[%emt 0:00:00]} 47. Qe7+ {[%emt 0:00:02]} Kh6 {[%emt 0:00:31]} 48. Qf8+ {[%emt 0:00:03]} Kh7 {[%emt 0:00:20]} 49. Qxf3 {[%emt 0:00:05]} Qc5 {[%emt 0:00:34]} 50. Qf4 {[%emt 0:02:24]} g5 {[%emt 0:00:15]} 51. Qf7+ {[%emt 0:00:06]} Kh6 {[%emt 0:00:10]} 52. Qf6+ {[%emt 0:00:04]} Kh5 {[%emt 0:02:11]} 53. b6 {[%emt 0:00:03]} g4 {[%emt 0:01:28]} 54. hxg4+ {[%emt 0:02:09]} Kxg4 {[%emt 0:00:02]} 55. Qe6+ {[%emt 0:00:08]} 1-0